Cogmind - Beta 13 @@@ ROGUE MODE // 2024.05.04 @ 03:56:03 Player: Steve the JanitorBot Result: Destroyed by G-34 Mercenary with Small Laser Performance ------------- Evolutions (1) 500 Regions Visited (3) 600 Robots Destroyed (31) 155 Value Destroyed (446) 446 Prototype IDs (2) 40 Alien Tech Used (0) 0 Bonus (0) 0 TOTAL SCORE: 1741 Bonus ------- None Cogmind --------- Core Integrity 0/400 Matter 2/300 Energy 100/100 System Corruption 0% Temperature Cool (6) Movement Core (1450) Ox28 Location -9/Materials Parts ------- > --- POWER (1) -------- (None) > --- PROPULSION (2) --- (None) > --- UTILITY (4) ------ Huge Storage Unit > --- WEAPON (2) ------- Assault Cannon > --- INVENTORY (25) --- Ion Engine Armored Treads Aluminum Leg Aluminum Leg Carbon-fiber Leg Carbon-fiber Leg Heat Sink Medium Storage Unit Large Storage Unit Medium Battery (150) Large Matter Pod (0) Large Matter Pod (0) Experimental Sensor Array Improved Terrain Scanner ECM Suite Utility Shielding Insulated Plating Improved Trap Extractor (0/6) EM Pulse Gun Small Laser EM Pulse Cannon Heavy Assault Rifle Peak State ------------ > --- POWER ------------ Nuclear Core > --- PROPULSION ------- Carbon-fiber Leg Carbon-fiber Leg > --- UTILITY ---------- Huge Storage Unit ECM Suite ECM Suite Weapon Shielding > --- WEAPON ----------- EM Pulse Gun EM Pulse Cannon > --- INVENTORY -------- Ion Engine Armored Treads Aluminum Leg Aluminum Leg Compact Wheel Compact Wheel Heat Sink Medium Storage Unit Large Storage Unit Medium Battery Large Matter Pod Large Matter Pod Experimental Sensor Array Improved Terrain Scanner ECM Suite Utility Shielding Insulated Plating Improved Trap Extractor Small Laser Small Laser Assault Cannon Grenade Launcher Rocket Launcher Datajack [Rating: 21] Favorites ----------- Power Light Ion Engine Engine Light Ion Engine Power Core Nuclear Core Propulsion Compact Wheel Treads Armored Treads Leg Aluminum Leg Wheel Compact Wheel Utility Huge Storage Unit Device ECM Suite Storage Huge Storage Unit Processor Transport Network Coupler Protection Weapon Shielding Weapon Assault Rifle Energy Gun Small Laser Energy Cannon EM Pulse Cannon Ballistic Gun Assault Rifle Ballistic Cannon Assault Cannon Launcher Grenade Launcher Special Melee Weapon Datajack Build | -11 -10 -10 -9 ------- Run | Yrd Mat Min Mat Slots Evolved 2 | . . . 2 Power . | . . . . Propulsion . | . . . . Utility 2 | . . . 2 Weapon . | . . . . Parts Attached 52 | 7 23 8 14 Power 7 | 1 5 1 . Engine 6 | 1 5 . . Core 1 | . . 1 . Reactor . | . . . . Propulsion 11 | 2 3 2 4 Treads 1 | . . 1 . Leg 5 | 2 1 . 2 Wheel 5 | . 2 1 2 Hover . | . . . . Flight . | . . . . Utility 10 | 1 5 2 2 Device 5 | 1 1 1 2 Storage 2 | . 2 . . Processor 1 | . 1 . . Hackware . | . . . . Protection 2 | . 1 1 . Artifact . | . . . . Weapon 24 | 3 10 3 8 Energy Gun 8 | 1 4 1 2 Energy Cannon 3 | . . 1 2 Ballistic Gun 5 | 2 3 . . Ballistic Cannon 2 | . . 1 1 Launcher 5 | . 3 . 2 Special Weapon . | . . . . Impact Weapon . | . . . . Slashing Weapon . | . . . . Piercing Weapon . | . . . . Special Melee Weapon 1 | . . . 1 Unidentified Prototypes . | . . . . Parts Lost 13 | . 3 . 10 Power 3 | . 2 . 1 Propulsion 2 | . . . 2 Utility 3 | . . . 3 Weapon 5 | . 1 . 4 Highest Loss Streak 6 | . 2 . 6 To Critical Strikes . | . . . . Average Slot Usage (%) 96 | . 97 99 82 Engine 6 | . 13 . . Core 6 | . . 13 10 Leg 6 | . 13 . 1 Wheel 19 | . 14 27 14 Device 3 | . . . 20 Storage 13 | . 13 14 11 Processor 5 | . 11 . . Protection 7 | . 1 13 7 Energy Gun 13 | . 13 14 8 Energy Cannon 6 | . . 13 6 Ballistic Gun 6 | . 14 . . Naked Turns . | . . . . Heaviest Build 100 | 8 88 96 100 Greatest Support 32 | 20 32 32 32 Greatest Overweight (x) 30 | . 4 2 30 Average Overweight (x) 1 | . 1 2 3 Largest Inventory Capacity 25 | 5 25 25 25 Average Capacity 18 | 5 17 25 25 Most Carried 25 | 5 22 25 25 Average Carried 14 | 3 9 24 23 Final Capacity 25 | 5 25 25 25 Final Carried 25 | 4 22 25 22 Class Distribution -------------------- 73% | Mutant 26% | Scavenger-Mutant Dominant Class ---------------- Scavenger-Mutant | -10/Materials Mutant | -10/Mines Mutant | -9/Materials Resources | -11 -10 -10 -9 ----------- Run | Yrd Mat Min Mat Matter Collected 661 | 320 295 46 . Remotely . | . . . . Salvage Created 595 | 84 366 16 129 Parts 56 | 9 33 3 11 Haulers Intercepted 3 | . 2 . 1 Recyclers Shooed 1 | . 1 . . Parts Field Recycled . | . . . . Retrieved Matter . | . . . . Parts Self-Destructed . | . . . . Prevented . | . . . . Kills | -11 -10 -10 -9 ------- Run | Yrd Mat Min Mat Combat Hostiles Destroyed 17 | 1 9 3 4 Guns 9 | 1 6 1 1 AOE 8 | . 3 2 3 Classes Destroyed 9 | 3 4 . 2 Worker 4 | 1 1 . 2 Builder 1 | . . . 1 Tunneler 1 | 1 . . . Hauler 3 | . 2 . 1 Recycler 1 | . 1 . . Watcher 4 | . 2 . 2 Swarmer 12 | . 6 3 3 Grunt 4 | 1 3 . . Sentry 1 | . . . 1 Best Kill Streak 9 | 2 3 3 9 Combat Bots Only 3 | 1 3 3 3 Max Kills in Single Turn 4 | 1 2 2 4 Gunslinging . | . . . . Exploded 2 | . 2 2 2 Melee . | . . . . Uniques/NPCs Destroyed . | . . . . Combat | -11 -10 -10 -9 -------- Run | Yrd Mat Min Mat Hostile Shots Fired 153 | 12 51 3 87 Missed 41 | 3 9 1 28 Damage Taken 1514 | 95 493 57 869 Core 567 | 11 123 27 406 Absorbed by Shields . | . . . . Redirected to Shielding 50 | . . 2 48 Core Remaining (%) 65 | 95 . 35 . Volleys Fired 74 | 9 44 2 19 Largest 2 | 2 2 2 2 Hottest 103 | 40 80 103 103 Shots Fired 126 | 18 79 4 25 Gun 105 | 18 73 2 12 Cannon 7 | . . 2 5 Launcher 14 | . 6 . 8 Special . | . . . . Kinetic 50 | 18 30 . 2 Thermal 52 | . 43 . 9 Explosive 14 | . 6 . 8 Electromagnetic 10 | . . 4 6 Robot Hit Streak 10 | 3 6 2 10 Robot Miss Streak 8 | 3 8 3 4 Penetration Max . | . . . . Secondary Targets . | . . . . Shots Hit Robots 66 | 10 34 2 20 Core Hits 43 | 4 22 3 14 Critical Kills 1 | . 1 . . Critical Parts Destroyed . | . . . . Critical Strikes 1 | . 1 . . Destroy 1 | . 1 . . Melee Attacks 1 | . . . 1 Impact . | . . . . Slashing . | . . . . Piercing . | . . . . Sneak Attacks . | . . . . Combat Hostiles . | . . . . Follow-up Attacks . | . . . . Damage Inflicted 1884 | 146 740 243 755 Guns 717 | 146 434 10 127 Cannons 112 | . . 20 92 Explosions 1055 | . 306 213 536 Melee . | . . . . Ramming . | . . . . Kinetic 393 | 146 197 . 50 Thermal 588 | . 237 213 138 Explosive 796 | . 306 . 490 Electromagnetic 107 | . . 30 77 Impact . | . . . . Slashing . | . . . . Piercing . | . . . . Highest Corruption . | . . . . Average Corruption . | . . . . Corruption Purged . | . . . . Corruption Blocked . | . . . . Overload Shots . | . . . . Overflow Damage 49 | . 10 25 14 Projectiles . | . . . . Explosions 49 | . 10 25 14 Melee . | . . . . Knockbacks 1 | . . . 1 Impact . | . . . . Kinetic 1 | . . . 1 Secondary . | . . . . Self-Inflicted Damage 88 | . 18 . 70 Shots 3 | . 1 . 2 Rammed . | . . . . Targets Rammed . | . . . . Kicked . | . . . . Crushed . | . . . . Highest Temperature 228 | . 228 96 39 Average Temperature 70 | . 102 49 18 Received Heat Transfer 507 | 54 90 . 363 Siege Activations . | . . . . Robots Corrupted . | . . . . Combat Hostiles . | . . . . Parts Fried 1 | . . . 1 Impact Corruptions . | . . . . Robots Melted . | . . . . Combat Hostiles . | . . . . Parts Melted 1 | . 1 . . Heat Transferred 1100 | . 550 250 300 Parts Sabotaged . | . . . . Parts Stolen . | . . . . Parts Stripped . | . . . . Power Chain Reactions 2 | . . 1 1 Alert | -11 -10 -10 -9 ------- Run | Yrd Mat Min Mat Peak Influence 179 | 30 164 130 179 Initial 26 | . . 26 . Average 51 | 11 90 28 64 Maximum Alert Level . | . . . . Low Security (%) 100 | 100 100 100 100 Level 1 . | . . . . Level 2 . | . . . . Level 3 . | . . . . Level 4 . | . . . . Level 5 . | . . . . High Security . | . . . . Max Security . | . . . . Squads Dispatched . | . . . . Investigation . | . . . . Extermination . | . . . . Reinforcement . | . . . . Assault . | . . . . Garrison . | . . . . Intercept . | . . . . Searches Triggered . | . . . . Construction Impeded . | . . . . Haulers Reinforced . | . . . . Active Scanning Responses . | . . . . Cargo Convoy Interrupts . | . . . . Stealth | -11 -10 -10 -9 --------- Run | Yrd Mat Min Mat Distress Signals 2 | . 1 . 1 Communications Jammed . | . . . . Distress Signals . | . . . . Times Spotted 26 | 1 13 2 10 Peak Tracking Total 5 | 1 3 3 5 Tactical Retreats 1 | . . . 1 Traps | -11 -10 -10 -9 ------- Run | Yrd Mat Min Mat Traps Triggered 4 | . 1 1 2 Indirectly . | . . . . Trap Hack Attempts . | . . . . Triggered . | . . . . Disarmed . | . . . . Reprogrammed . | . . . . Reused . | . . . . Traps Extracted . | . . . . Installed . | . . . . Triggered . | . . . . Machines | -11 -10 -10 -9 ---------- Run | Yrd Mat Min Mat Machines Disabled 4 | . 2 1 1 Max in Single Turn 2 | . 2 1 1 Machines Repaired . | . . . . Machines Dismantled . | . . . . Machines Sabotaged . | . . . . Overloaded Fab Kills . | . . . . Hacking | -11 -10 -10 -9 --------- Run | Yrd Mat Min Mat Machines Accessed 5 | . 4 1 . Terminals 4 | . 4 . . Fabricators . | . . . . Repair Stations . | . . . . Recycling Units . | . . . . Scanalyzers . | . . . . Garrison Access . | . . . . Total Hacks 9 | . 8 1 . Successful 7 | . 6 1 . Failed 2 | . 2 . . Catastrophic . | . . . . Database Lockouts . | . . . . Manual . | . . . . Terminals 8 | . 8 . . Fabricators . | . . . . Repair Stations . | . . . . Recycling Units . | . . . . Scanalyzers . | . . . . Garrison Access . | . . . . Terminal Hacks 7 | . 6 1 . Record 5 | . 5 . . Prototype ID Bank 1 | . 1 . . Open Door 1 | . . 1 . Fabricator Hacks . | . . . . Repair Station Hacks . | . . . . Recycling Unit Hacks . | . . . . Scanalyzer . | . . . . Garrison Access Hacks . | . . . . Unauthorized Hacks . | . . . . Terminals . | . . . . Fabricators . | . . . . Repair Stations . | . . . . Recycling Units . | . . . . Scanalyzers . | . . . . Garrison Access . | . . . . Data Cores Recovered . | . . . . Used . | . . . . Hacking Detections 4 | . 4 . . Full Trace Events . | . . . . Feedback Events . | . . . . Feedback Blocked . | . . . . Robot Schematics Acquired . | . . . . Robots Built . | . . . . Authchips . | . . . . Time . | . . . . Total Robot Build Rating . | . . . . Part Schematics Acquired . | . . . . Parts Built . | . . . . Authchips . | . . . . Time . | . . . . Total Part Build Rating . | . . . . Parts Repaired . | . . . . Time . | . . . . Parts Recycled . | . . . . Recycled Matter . | . . . . Retrieved Matter . | . . . . Retrieved Components . | . . . . Parts Scanalyzed . | . . . . Part Schematics Acquired . | . . . . Parts Damaged . | . . . . Bothacking | -11 -10 -10 -9 ------------ Run | Yrd Mat Min Mat Used RIF Installer . | . . . . Robots Hacked 1 | . . . 1 Non-combat . | . . . . Combat 1 | . . . 1 Robot Hacks Applied 1 | . . . 1 parse_system 1 | . . . 1 Relay Couplers Released . | . . . . Fabnet Peak Effective % . | . . . . Robots Rewired . | . . . . Allies Hacked . | . . . . Hacks Repelled . | . . . . Allies | -11 -10 -10 -9 -------- Run | Yrd Mat Min Mat Total Allies . | . . . . Largest Group . | . . . . Highest-Rated Group . | . . . . Highest-Rated Ally . | . . . . Total Orders . | . . . . Ally Attacks . | . . . . Total Damage . | . . . . Kills . | . . . . Allies Corrupted . | . . . . Allies Melted . | . . . . Intel | -11 -10 -10 -9 ------- Run | Yrd Mat Min Mat Robot Analysis Total . | . . . . Derelict Logs Recovered 1 | . . 1 . Drone Launches . | . . . . Drone Recoveries . | . . . . Exploration | -11 -10 -10 -9 ------------- Run | Yrd Mat Min Mat Turns Passed 3319 | 675 1173 1063 408 Spaces Moved 1895 | 200 755 770 170 Core 48 | 44 . . 4 Treads . | . . . . Legs 501 | 156 340 . 5 Wheels 1346 | . 415 770 161 Hover . | . . . . Flight . | . . . . Fastest Speed 50 | 50 120 130 130 Average Speed 131 | 104 128 130 183 Slowest Speed 1550 | 120 400 130 1550 Overloaded Moves . | . . . . Propulsion Burnouts . | . . . . Robots Hopped 3 | . . . 3 Cave-ins Triggered . | . . . . Exploration Rate (%) 51 | 13 87 92 13 Regions Visited 3 Branch Regions 1 Pre-discovered Areas . | . . . . Known Exits Taken . | . . . . Unknown Exits Taken 3 | 1 1 1 . Scrap Searched 1 | . . 1 . Spaces Dug . | . . . . Terrain Destroyed 142 | . 86 19 37 Melee . | . . . . Projectile . | . . . . AOE 142 | . 86 19 37 Terrain Rammed . | . . . . Walls Destroyed . | . . . . Machines Disabled . | . . . . Actions | -11 -10 -10 -9 --------- Run | Yrd Mat Min Mat Total 2602 | 649 879 828 246 Wait 481 | 418 . 33 30 Move 1886 | 199 754 769 164 Hop 3 | . . . 3 Pick Up 72 | 13 40 9 10 Fast Attach . | . . . . Attach 21 | 6 5 2 8 Detach 2 | . 1 1 . Swap 31 | 1 18 6 6 Drop 31 | 3 17 6 5 Fire 74 | 9 44 2 19 Melee 1 | . . . 1 Ram . | . . . . Kick . | . . . . Crush . | . . . . Escape Stasis . | . . . . Rewire . | . . . . Trap . | . . . . Miscellaneous . | . . . . Route ------- -11/Scrapyard -10/Materials (discovered 4 exits: [*Mat x2] / *Min x2) -10/Mines -9/Materials (discovered 2 exits: Mat x2) History --------- Turn | Location | Event 2 | -11/Scrapyard | Met Revision 17 113 | -11/Scrapyard | Discovered new exit (range 8) 676 | -11/Scrapyard | Entered Materials 677 | -10/Materials | Build established: Mutant 783 | -10/Materials | Discovered new exit (range 8) 1037 | -10/Materials | Discovered new exit (range 15) 1305 | -10/Materials | Discovered new exit (range 5) 1309 | -10/Materials | Discovered new exit (range 6) 1443 | -10/Materials | Build established: Scavenger-Mutant 1693 | -10/Materials | Core integrity fell below 50% 1849 | -10/Materials | Entered Mines 1855 | -10/Mines | Met a Derelict bent on vengeance 1858 | -10/Mines | Met a Derelict who couldn't figure out how to use a Trap Extractor 2058 | -10/Mines | Learned location of 2 exits from Materials 2107 | -10/Mines | Found a damaged Exp. Sensor Array with a note attached 2110 | -10/Mines | Found Prototype Device 2159 | -10/Mines | Build established: Mutant 2890 | -10/Mines | Discovered new exit (range 15) 2912 | -10/Mines | Entered Materials 2912 | -9/Materials | Evolved 2 slots: Utility x2 2913 | -9/Materials | Identified exit to Materials 3253 | -9/Materials | Lost 6 parts (2n1u3w) 3275 | -9/Materials | Core integrity fell below 50% 3298 | -9/Materials | Core integrity fell below 20% 3320 | -9/Materials | Destroyed by G-34 Mercenary with Small Laser Last Messages --------------- U-05 Engineer lays Concrete. U-05 Engineer builds a Door. U-05 Engineer lays Concrete. U-05 Engineer builds a Wall. U-05 Engineer builds a Door. ECM Suite destroyed. U-05 Engineer lays Concrete. U-05 Engineer builds a Wall. Nuclear Core destroyed. U-05 Engineer lays Concrete. Sml. Laser destroyed. U-05 Engineer lays Concrete. G-47 Trooper knocked back. U-05 Engineer builds a Wall. U-05 Engineer lays Concrete. U-05 Engineer builds a Door. U-05 Engineer builds a Wall. ECM Suite destroyed. [Achievement: Crack Shot] [Achievement: First Step to Greatness] Map ----- +----------------------------------------------------+ | ?????????????????????????????????????????????????? | | ?????????????????????????????????????????????????? | | ?????????????????????????????????????????????????? | | ?????????????????????????????????????????????????? | | ?????????????????????????????????????????????????? | | ?????????????????????????????????????????????????? | | ?????????????????????????????????????????????????? | | ?????????????????????????????????????????????????? | | ?????????????????????????????????????????????????? | | ?????????????????????????????????????????????????? | | ?????????????????????????????????????????????????? | | ?????????????????????????????????????????????????? | | ?????????????????????????????????????????????????? | | ?????????????????????????????????????????????????? | | ??????????????????????????????? ?? #?????????????? | | ??????????????????????????????? ?? #?????????????? | | ???????????????????????????????+## #??###????????? | | ??????????????????????????????#==*=### ??????? | | ??????????????????????????????#%== ??????? | | ?????????????????????????????## %! ???????? | | ?????????????????????????????? = | * ???????? | | ?????????????????????????????? =%* # ????????? | | ??????????????????????????????#!! # ##+#####???? | | ??????????????????????????????# # ????? | | ???????????????????##+#########a## # #???? | | ???????????????????# + @ g% # ????? | | ???????????????????# # g % # [ [ ????? | | ???????????????????# ; a # ######???????? | | ???????????????????# # # # #????????? | | ???????????????????# # r# "" #????????? | | ???????????????????# # # "Y #????????? | | ???????????????????# # + "" #????????? | | ???????????????????# # ### #????????? | | ???????????????????# ##+###### ### #????????? | | ???????????????????# ###??###?? #????????? | | ???????????????????# #????????####????????? | | ???????????????????# ##########???????????? | | ???????????????????# # !!#???????????? | | ???????????????????###### # """ !!!#???????????? | | ????????????????????????# # """ !! #???????????? | | ????????????????????????# # """ =#???????????? | | ????????????????????????# + =#???????????? | | ???????????????########## #^""" #???????????? | | ???????????????# # # """ #???????????? | | ???????????????#""" # # """ #???????????? | | ???????????????#""" # # #???????????? | | ???????????????#""" # ##########???????????? | | ???????????????# + #????????????????????? | | ???????????????# " # #????????????????????? | | ???????????????# T"# #????????????????????? | +----------------------------------------------------+ Best States ------------- Heat Dissipation 28 Energy Generation 14 Energy Capacity 250 Matter Stores 296 Matter Capacity 300 Sight Range 16 Terrain Scan Range 16 Terrain Scan Density 10 ECM Strength 2 Weapon Shielding 33 Evasion (%) 55 Recoil Reduction 1 Trap Extractor Capacity 6 Item Schematics ----------------- None Robot Schematics ------------------ None Fabricated ------------ Nothing Alien Tech Used ----------------- None Achievements -------------- Crack Shot First Step to Greatness Loot Pinata Oops Storm Trooper Challenges ------------ None Game ------ Seed MakeshiftSubatomicPenetrator Manual? 0 Play Time 01:11:39 Cumulative 1.1 hours Start 2024.05.03 @ 18:03:39 End 2024.05.04 @ 03:56:03 Sessions 2 Manual Loads 0 Difficulty Rogue Special Mode None Game No. 1 Rogue 1 Adventurer 0 Explorer 0 Win Type - Total 0 Types 0/0/0/0/0/0/0/0/0 Lore% 0 Gallery% 3 Achievement% 1 Wizard Run 0 Options --------- Layout 1 ASCII 0 Keyboard 0 Movement Arrows Keybinds 0 Fullscreen 1 Font 24/Smallcaps Map View 50x35 Zoom Use 0% Tactical HUD 0 Map Filters NONE Filters NONE Steam 1 RUN: 81be9136-7199-46d3-ac28-9b59c2696a9f